fUST/lending_fUST_20251111
["ID","MTS","AMOUNT","RATE_DAILY","PERIOD"]
[393644527,1762873848646,-182.06,0.00015135,2]
[393644529,1762873848655,-182.04,0.00015135,2]
[393644531,1762873848664,-343.91681188,0.00015189,2]
[393644533,1762873848673,-393.04778501,0.00015189,2]
[393644535,1762873848682,-183.45153978,0.00015189,2]
[393644537,1762873848692,-500.0,0.00015262,2]
[393644539,1762873848702,-2243.40088242,0.00015336,2]
[393644541,1762873848713,-300.0,0.0001539,2]
[393644543,1762873848722,-300.0,0.0001539,2]
[393644545,1762873848732,-300.0,0.0001539,2]
[393644547,1762873848741,-300.0,0.0001539,2]
[393644549,1762873848751,-300.0,0.0001539,2]
[393644551,1762873848760,-300.0,0.0001539,2]
[393644553,1762873848770,-300.0,0.0001539,2]
[393644555,1762873848779,-300.0,0.0001539,2]
[393644557,1762873848789,-300.0,0.0001539,2]
[393644559,1762873848799,-300.0,0.0001539,2]
[393644561,1762873848809,-300.0,0.0001539,2]
[393644563,1762873848819,-300.0,0.0001539,2]
[393644565,1762873848831,-300.0,0.0001539,2]
[393644567,1762873848841,-300.0,0.0001539,2]
[393644569,1762873848851,-300.0,0.0001539,2]
[393644571,1762873848860,-600.0,0.0001539,2]
[393644573,1762873848874,-500.0,0.00015438,2]
[393644575,1762873848884,-501.22366728,0.00015438,2]
[393644577,1762873848893,-500.0,0.00015438,2]
[393644579,1762873848903,-500.0,0.00015438,2]
[393644581,1762873848913,-508.57098806,0.00015438,2]
[393644583,1762873848923,-500.0,0.00015438,2]
[393644584,1762873848933,-412.11065633,0.00015438,2]
[393644585,1762873848943,-500.0,0.00015536,2]
[393644586,1762873848952,-500.0,0.0001581,2]
[393644587,1762873848961,-501.9409669,0.00015924,2]
[393644588,1762873848970,-1000.0,0.00015986,2]
[393644589,1762873848979,-330.99422104,0.00015986,2]
[393644591,1762873848989,-1000.0,0.00015986,2]
[393644593,1762873848998,-500.0,0.00016084,2]
[393644595,1762873849007,-329.88255883,0.00016139,2]
[393644597,1762873849017,-300.0,0.00016295,2]
[393644598,1762873849026,-342.0,0.00016295,2]
[393644599,1762873849035,-362.98690802,0.00016358,2]
[393644600,1762873849045,-1200.0,0.00016376,2]
[393644601,1762873849055,-500.0,0.00016438,2]
[393644602,1762873849065,-500.0,0.00016438,2]
[393644603,1762873849075,-500.0,0.00016438,2]
[393644604,1762873849084,-500.0,0.00016438,2]
[393644605,1762873849094,-335.47735847,0.00016438,2]
[393644606,1762873849104,-151.0,0.00016438,2]
[393644607,1762873849116,-151.0,0.00016438,2]
[393644608,1762873849125,-159.861931,0.00016438,2]
[393644609,1762873849135,-963.094964,0.00016438,2]
[393644610,1762873849145,-963.094964,0.00016438,2]
[393644611,1762873849155,-963.094964,0.00016438,2]
[393644612,1762873849164,-963.094964,0.00016438,2]
[393644613,1762873849174,-223.78638,0.00016438,2]
[393644614,1762873849183,-223.78638,0.00016438,2]
[393644615,1762873849192,-223.78638,0.00016438,2]
[393644616,1762873849202,-223.78638,0.00016438,2]
[393644617,1762873849212,-500.0,0.00016438,2]
[393644618,1762873849221,-500.0,0.00016438,2]
[393644619,1762873849231,-661.2228427,0.00016438,2]
[393644620,1762873849241,-661.2228427,0.00016438,2]
[393644621,1762873849255,-500.0,0.00016438,2]
[393644622,1762873849265,-661.2228427,0.00016438,2]
[393644623,1762873849275,-249.07991429,0.00016438,2]
[393644624,1762873849285,-661.2228427,0.00016438,2]
[393644625,1762873849296,-500.0,0.00016438,2]
[393644626,1762873849307,-661.2228427,0.00016438,2]
[393644627,1762873849317,-661.2228427,0.00016438,2]
[393644628,1762873849329,-661.2228427,0.00016438,2]
[393644629,1762873849340,-661.2228427,0.00016438,2]
[393644630,1762873849350,-661.2228427,0.00016438,2]
[393644631,1762873849360,-661.2228427,0.00016438,2]
[393644632,1762873849371,-661.2228427,0.00016438,2]
[393644633,1762873849381,-661.2228427,0.00016438,2]
[393644634,1762873849391,-661.2228427,0.00016438,2]
[393644635,1762873849400,-661.2228427,0.00016438,2]
[393644636,1762873849410,-661.2228427,0.00016438,2]
[393644637,1762873849420,-661.2228427,0.00016438,2]
[393644638,1762873849429,-661.2228427,0.00016438,2]
[393644639,1762873849439,-661.2228427,0.00016438,2]
[393644640,1762873849450,-661.2228427,0.00016438,2]
[393644641,1762873849460,-661.2228427,0.00016438,2]
[393644642,1762873849470,-661.2228427,0.00016438,2]
[393644643,1762873849479,-661.2228427,0.00016438,2]
[393644644,1762873849488,-661.2228427,0.00016438,2]
[393644645,1762873849498,-661.2228427,0.00016438,2]
[393644646,1762873849507,-661.2228427,0.00016438,2]
[393644647,1762873849517,-661.2228427,0.00016438,2]
[393644648,1762873849527,-661.2228427,0.00016438,2]
[393644649,1762873849536,-661.2228427,0.00016438,2]
[393644650,1762873849546,-661.2228427,0.00016438,2]
[393644651,1762873849555,-661.2228427,0.00016438,2]
[393644652,1762873849565,-661.2228427,0.00016438,2]
[393644653,1762873849575,-661.2228427,0.00016438,2]
[393644654,1762873849585,-661.2228427,0.00016438,2]
[393644655,1762873849594,-661.2228427,0.00016438,2]
[393644656,1762873849604,-661.2228427,0.00016438,2]
[393644657,1762873849613,-661.2228427,0.00016438,2]
[393644658,1762873849624,-661.2228427,0.00016438,2]
[393644659,1762873849634,-661.2228427,0.00016438,2]
[393644660,1762873849644,-661.2228427,0.00016438,2]
[393644661,1762873849654,-661.2228427,0.00016438,2]
[393644662,1762873849663,-661.2228427,0.00016438,2]
[393644663,1762873849771,-661.2228427,0.00016438,2]
[393644664,1762873849781,-661.2228427,0.00016438,2]
[393644665,1762873849791,-661.2228427,0.00016438,2]
[393644666,1762873849801,-661.2228427,0.00016438,2]
[393644667,1762873849810,-661.2228427,0.00016438,2]
[393644668,1762873849821,-661.2228427,0.00016438,2]
[393644669,1762873849830,-661.2228427,0.00016438,2]
[393644670,1762873849839,-661.2228427,0.00016438,2]
[393644671,1762873849849,-661.2228427,0.00016438,2]
[393644672,1762873849858,-661.2228427,0.00016438,2]
[393644673,1762873849869,-656.13651314,0.00016438,2]
[393644674,1762873849879,-656.13651314,0.00016438,2]
[393644675,1762873849889,-656.13651314,0.00016438,2]
[393644676,1762873849898,-656.13651314,0.00016438,2]
[393644677,1762873849907,-656.13651314,0.00016438,2]
[393644678,1762873849918,-656.13651314,0.00016438,2]
[393644679,1762873849929,-656.13651314,0.00016438,2]
[393644680,1762873849939,-656.13651314,0.00016438,2]
[393644681,1762873849948,-656.13651314,0.00016438,2]
[393644682,1762873849958,-656.13651314,0.00016438,2]
[393644683,1762873849968,-656.13651314,0.00016438,2]
[393644684,1762873849978,-656.13651314,0.00016438,2]
[393644685,1762873849988,-656.13651314,0.00016438,2]
[393644686,1762873849997,-656.13651314,0.00016438,2]
[393644687,1762873850007,-656.13651314,0.00016438,2]
[393644688,1762873850016,-656.13651314,0.00016438,2]
[393644689,1762873850026,-656.13651314,0.00016438,2]
[393644690,1762873850035,-656.13651314,0.00016438,2]
[393644691,1762873850044,-656.13651314,0.00016438,2]
[393644692,1762873850055,-656.13651314,0.00016438,2]
[393644693,1762873850064,-656.13651314,0.00016438,2]
[393644694,1762873850074,-656.13651314,0.00016438,2]
[393644695,1762873850084,-656.13651314,0.00016438,2]
[393644696,1762873850094,-656.13651314,0.00016438,2]
[393644697,1762873850103,-656.13651314,0.00016438,2]
[393644698,1762873850112,-656.13651314,0.00016438,2]
[393644699,1762873850124,-656.13651314,0.00016438,2]
[393644700,1762873850133,-656.13651314,0.00016438,2]
[393644701,1762873850143,-656.13651314,0.00016438,2]
[393644702,1762873850153,-656.13651314,0.00016438,2]
[393644703,1762873850163,-656.13651314,0.00016438,2]
[393644704,1762873850172,-662.21185124,0.00016438,2]
[393644705,1762873850182,-662.21185124,0.00016438,2]
[393644706,1762873850192,-662.21185124,0.00016438,2]
[393644707,1762873850202,-662.21185124,0.00016438,2]
[393644708,1762873850211,-662.21185124,0.00016438,2]
[393644709,1762873850223,-662.21185124,0.00016438,2]
[393644710,1762873850234,-662.21185124,0.00016438,2]
[393644711,1762873850244,-662.21185124,0.00016438,2]
[393644712,1762873850254,-662.21185121,0.00016438,2]
[393644713,1762873850267,-167.241968,0.00016438,2]
[393644714,1762873850277,-382.286708,0.00016438,2]
[393644715,1762873850286,-382.286708,0.00016438,2]
[393644716,1762873850295,-382.286708,0.00016438,2]
[393644717,1762873850305,-382.286708,0.00016438,2]
[393644718,1762873850314,-151.0,0.00016438,2]
[393644719,1762873850323,-501.17308663,0.00016473,2]
[393644720,1762873850334,-500.43470923,0.00016473,2]
[393644721,1762873850344,-500.41926643,0.00016473,2]
[393644722,1762873850352,-500.0,0.00016473,2]
[393644723,1762873850364,-500.0,0.00016473,2]
[393644724,1762873850375,-600.0,0.000165,2]
[393644725,1762873850386,-1500.0,0.00016534,2]
[393644726,1762873850396,-1500.0,0.00016534,2]
[393644727,1762873850405,-189.441753,0.0001687,2]
[393644728,1762873850415,-1274.39,0.00016921,2]
[393644729,1762873850424,-720.0,0.00016929,2]
[393644730,1762873850433,-206.31757596,0.00016939,2]
[393644731,1762873850443,-10404.78017191,0.00017,2]
[393644732,1762873850453,-1000.0,0.00017021,2]
[393644733,1762873850463,-1000.0,0.00017021,2]
[393644734,1762873850472,-2000.0,0.00017082,2]
[393644735,1762873850482,-1724.69842444,0.00017082,2]
[393644736,1762873850492,-256.49983596,0.00017129,2]
[393644737,1762873850503,-176.0,0.00017225,2]
[393644738,1762873850513,-176.0,0.0001723,2]
[393644739,1762873850522,-731.3795344,0.00017238,2]
[393644740,1762873850531,-484.38472379,0.00017287,2]
[393644741,1762873850541,-928.86285772,0.00017353,2]
[393644742,1762873850551,-627.70313445,0.00017465,2]
[393644743,1762873850560,-501.1549955,0.00017508,2]
[393644744,1762873850570,-176.0,0.00017545,2]
[393644745,1762873850580,-500.0,0.00017559,2]
[393644746,1762873850590,-1508.85603202,0.00017568,2]
[393644747,1762873850600,-1000.0,0.00017568,2]
[393644748,1762873850610,-176.0,0.00017627,2]
[393644749,1762873850620,-2500.0,0.0001763,2]
[393644750,1762873850630,-151.0,0.0001763,2]
[393644751,1762873850640,-176.0,0.00017646,2]
[393644752,1762873850651,-163.1928326,0.00017736,2]
[393644753,1762873850660,-176.0,0.00017736,2]
[393644754,1762873850670,-160.0,0.00017818,2]
[393644755,1762873850679,-176.0,0.00017842,2]
[393644756,1762873850689,-176.0,0.00017885,2]
[393644757,1762873850698,-500.0,0.00017889,2]
[393644758,1762873850708,-500.0,0.00017889,2]
[393644759,1762873850718,-500.83189599,0.00017889,2]
[393644760,1762873850728,-500.0,0.00017889,2]
[393644761,1762873850738,-500.0,0.00017889,2]
[393644762,1762873850747,-579.50218712,0.00017889,2]
[393644763,1762873850757,-504.34957123,0.00017889,2]
[393644764,1762873850768,-21283.48450707,0.00018,2]
[393644765,1762873850778,-4711.50336833,0.00018,2]
[393644766,1762873850787,-151.0,0.00018,2]
[393644767,1762873850797,-151.0,0.00018,2]
[393644768,1762873850806,-963.094964,0.00018,2]
[393644769,1762873850816,-963.094964,0.00018,2]
[393644770,1762873850825,-963.094964,0.00018,2]
[393644771,1762873850834,-963.094964,0.00018,2]
[393644772,1762873850843,-223.78638,0.00018,2]
[393644773,1762873850854,-223.78638,0.00018,2]
[393644774,1762873850864,-223.78638,0.00018,2]
[393644775,1762873850875,-223.78638,0.00018,2]
[393644776,1762873850885,-382.286708,0.00018,2]
[393644777,1762873850894,-382.286708,0.00018,2]
[393644778,1762873850904,-382.286708,0.00018,2]
[393644779,1762873850913,-382.286708,0.00018,2]
[393644780,1762873850922,-502.04118686,0.00018107,2]
[393644781,1762873850931,-176.0,0.00018126,2]
[393644782,1762873850940,-176.0,0.00018129,2]
[393644783,1762873850949,-3000.0,0.00018178,2]
[393644784,1762873850958,-189.441753,0.0001826,3]
[393644785,1762873850968,-289.44708654,0.00018315,2]
[393644786,1762873850977,-458.65716055,0.00018317,2]
[393644787,1762873850987,-420.0,0.00018366,2]
[393644788,1762873850996,-174.692,0.00018389,2]
[393644789,1762873851006,-176.0,0.00018424,2]
[393644790,1762873851015,-1000.0,0.00018437,2]
[393644791,1762873851025,-514.37580653,0.00018437,2]
[393644792,1762873851034,-1000.0,0.00018437,2]
[393644793,1762873851044,-1004.43111576,0.00018437,2]
[393644794,1762873851054,-176.0,0.00018445,2]
[393644795,1762873851066,-176.0,0.00018555,2]
[393644796,1762873851076,-864.0,0.00018622,2]
[393644797,1762873851086,-150.0,0.00018773,2]
[393644798,1762873851096,-237.78974856,0.00018939,2]
[393644799,1762873851106,-1500.0,0.00018985,2]
[393644800,1762873851116,-151.0,0.00019178,2]
[393644801,1762873851126,-151.0,0.00019178,2]
[393644802,1762873851135,-156.786283,0.00019178,2]
[393644803,1762873851144,-151.848422,0.00019178,2]
[393644804,1762873851153,-151.0,0.00019178,2]
[393644805,1762873851164,-152.857242,0.00019178,2]
[393644806,1762873851173,-207.447085,0.00019178,2]
[393644807,1762873851183,-151.0,0.00019178,2]
[393644808,1762873851192,-151.0,0.00019178,2]
[393644809,1762873851201,-151.0,0.00019178,2]
[393644810,1762873851211,-151.0,0.00019178,2]
[393644811,1762873851220,-151.0,0.00019178,2]
[393644812,1762873851229,-151.0,0.00019178,2]
[393644813,1762873851239,-151.0,0.00019178,2]
[393644814,1762873851251,-151.0,0.00019178,2]
[393644815,1762873851265,-155.374337,0.00019178,2]
[393644816,1762873851275,-151.0,0.00019178,2]
[393644817,1762873851284,-242.348322,0.00019178,2]
[393644818,1762873851293,-153.114341,0.00019178,2]
[393644819,1762873851303,-154.0156,0.00019178,2]
[393644820,1762873851312,-151.0,0.00019178,2]
[393644821,1762873851321,-151.0,0.00019178,2]
[393644822,1762873851330,-151.0,0.00019178,2]
[393644823,1762873851343,-151.0,0.00019178,2]
[393644824,1762873851354,-161.377221,0.00019178,2]
[393644825,1762873851363,-151.0,0.00019178,2]
[393644826,1762873851376,-151.0,0.00019178,2]
[393644827,1762873851385,-151.0,0.00019178,2]
[393644828,1762873851395,-151.0,0.00019178,2]
[393644829,1762873851404,-151.0,0.00019178,2]
[393644830,1762873851414,-151.0,0.00019178,2]
[393644831,1762873851423,-151.0,0.00019178,2]
[393644832,1762873851433,-151.0,0.00019178,2]
[393644833,1762873851443,-152.641318,0.00019178,2]
[393644834,1762873851452,-151.0,0.00019178,2]
[393644835,1762873851461,-151.0,0.00019178,2]
[393644836,1762873851471,-151.0,0.00019178,2]
[393644837,1762873851480,-151.0,0.00019178,2]
[393644838,1762873851490,-170.068495,0.00019178,2]
[393644839,1762873851499,-151.0,0.00019178,2]
[393644840,1762873851509,-151.0,0.00019178,2]
[393644841,1762873851519,-151.0,0.00019178,2]
[393644842,1762873851528,-151.0,0.00019178,2]
[393644843,1762873851538,-151.0,0.00019178,2]
[393644844,1762873851547,-151.0,0.00019178,2]
[393644845,1762873851557,-151.0,0.00019178,2]
[393644846,1762873851566,-151.0,0.00019178,2]
[393644847,1762873851576,-173.814937,0.00019178,2]
[393644848,1762873851585,-151.0,0.00019178,2]
[393644849,1762873851595,-154.946134,0.00019178,2]
[393644850,1762873851605,-168.006233,0.00019178,2]
[393644851,1762873851614,-151.0,0.00019178,2]
[393644852,1762873851626,-151.0,0.00019178,2]
[393644853,1762873851635,-151.0,0.00019178,2]
[393644854,1762873851645,-151.0,0.00019178,2]
[393644855,1762873851654,-151.0,0.00019178,2]
[393644856,1762873851663,-189.743524,0.00019178,2]
[393644857,1762873851673,-151.0,0.00019178,2]
[393644858,1762873851684,-165.754815,0.00019178,2]
[393644859,1762873851694,-151.0,0.00019178,2]
[393644860,1762873851703,-151.0,0.00019178,2]
[393644861,1762873851714,-151.0,0.00019178,2]
[393644862,1762873851723,-151.0,0.00019178,2]
[393644863,1762873851732,-234.858527,0.00019178,2]
[393644864,1762873851749,-234.858527,0.00019178,2]
[393644865,1762873851761,-234.858527,0.00019178,2]
[393644866,1762873851770,-234.858527,0.00019178,2]
[393644867,1762873851779,-234.858527,0.00019178,2]
[393644868,1762873851790,-234.858527,0.00019178,2]
[393644869,1762873851801,-234.858527,0.00019178,2]
[393644870,1762873851810,-234.858527,0.00019178,2]
[393644871,1762873851820,-151.0,0.00019178,2]
[393644872,1762873851830,-151.0,0.00019178,2]
[393644873,1762873851839,-151.0,0.00019178,2]
[393644874,1762873851849,-151.0,0.00019178,2]
[393644875,1762873851860,-151.0,0.00019178,2]
[393644876,1762873851869,-151.0,0.00019178,2]
[393644877,1762873851878,-1763.361008,0.00019178,2]
[393644878,1762873851888,-1763.361008,0.00019178,2]
[393644879,1762873851898,-1763.361008,0.00019178,2]
[393644880,1762873851907,-1763.361008,0.00019178,2]
[393644881,1762873851917,-1763.361008,0.00019178,2]
[393644882,1762873851927,-1763.361008,0.00019178,2]
[393644883,1762873851936,-1763.361008,0.00019178,2]
[393644884,1762873851946,-1763.361008,0.00019178,2]
[393644885,1762873851955,-151.0,0.00019178,2]
[393644886,1762873851965,-151.00000039,0.00019178,2]
[393644887,1762873851974,-151.0,0.00019178,2]
[393644888,1762873851984,-151.0,0.00019178,2]
[393644889,1762873851994,-188.259481,0.00019178,2]
[393644890,1762873852003,-300.406997,0.00019178,2]
[393644891,1762873852013,-300.406997,0.00019178,2]
[393644892,1762873852022,-252.741696,0.00019178,2]
[393644893,1762873852032,-300.406997,0.00019178,2]
[393644894,1762873852042,-300.406997,0.00019178,2]
[393644895,1762873852138,-300.406997,0.00019178,2]
[393644896,1762873852150,-300.406997,0.00019178,2]
[393644897,1762873852160,-300.406997,0.00019178,2]
[393644898,1762873852169,-300.406997,0.00019178,2]
[393644899,1762873852179,-151.631419,0.00019178,2]
[393644900,1762873852189,-151.0,0.00019178,2]
[393644901,1762873852199,-151.0,0.00019178,2]
[393644902,1762873852208,-151.0,0.00019178,2]
[393644903,1762873852217,-185.140251,0.00019178,2]
[393644904,1762873852227,-151.0,0.00019269,7]
[393644905,1762873852236,-151.0,0.00019269,7]
[393644906,1762873852247,-151.0,0.00019269,7]
[393644907,1762873852258,-151.0,0.00019269,7]
[393644908,1762873852269,-151.0,0.00019269,7]
[393644909,1762873852278,-151.0,0.00019269,7]
[393644910,1762873852288,-151.0,0.00019269,7]
[393644911,1762873852298,-151.0,0.00019269,7]
[393644912,1762873852308,-963.094964,0.00019269,7]
[393644913,1762873852317,-963.094964,0.00019269,7]
[393644914,1762873852327,-963.094964,0.00019269,7]
[393644915,1762873852336,-963.094964,0.00019269,7]
[393644916,1762873852345,-151.0,0.00019269,7]
[393644917,1762873852354,-248.0858,0.00019269,7]
[393644918,1762873852364,-151.0,0.00019269,7]
[393644919,1762873852374,-151.0,0.00019269,7]
[393644920,1762873852384,-400.09383847,0.00019269,7]
[393644921,1762873852395,-151.0,0.00019269,7]
[393644922,1762873852405,-151.863061,0.00019269,7]
[393644923,1762873852414,-234.858527,0.00019269,7]
[393644924,1762873852423,-234.858527,0.00019269,7]
[393644925,1762873852433,-234.858527,0.00019269,7]
[393644926,1762873852444,-234.858527,0.00019269,7]
[393644927,1762873852453,-151.0,0.00019269,7]
[393644928,1762873852468,-151.0,0.00019269,7]
[393644929,1762873852479,-151.0,0.00019269,7]
[393644930,1762873852488,-1763.361008,0.00019269,7]
[393644931,1762873852498,-1763.361008,0.00019269,7]
[393644932,1762873852508,-1763.361008,0.00019269,7]
[393644933,1762873852518,-1763.361008,0.00019269,7]
[393644934,1762873852527,-151.0,0.00019269,7]
[393644935,1762873852536,-300.406997,0.00019269,7]
[393644936,1762873852546,-300.406997,0.00019269,7]
[393644937,1762873852555,-223.78638,0.00019269,7]
[393644938,1762873852564,-300.406997,0.00019269,7]
[393644939,1762873852574,-223.78638,0.00019269,7]
[393644940,1762873852583,-300.406997,0.00019269,7]
[393644941,1762873852592,-223.78638,0.00019269,7]
[393644942,1762873852602,-223.78638,0.00019269,7]
[393644943,1762873852612,-382.286708,0.00019269,7]
[393644944,1762873852623,-382.286708,0.00019269,7]
[393644945,1762873852633,-382.286708,0.00019269,7]
[393644946,1762873852642,-382.286708,0.00019269,7]
[393644947,1762873852652,-152.97379538,0.00019361,2]
[393644948,1762873852662,-1821.02387417,0.00019533,2]
[393644949,1762873852672,-928.86285772,0.00019538,2]
[393644950,1762873852681,-189.441753,0.000196,4]
[393644951,1762873852691,-151.0,0.00019656,7]
[393644952,1762873852700,-520.48375102,0.00019757,2]
[393644953,1762873852710,-824.75730609,0.00019761,2]
[393644954,1762873852719,-167.68032621,0.0002,2]
[393644955,1762873852729,-501.11099204,0.00020095,2]
[393644956,1762873852738,-500.0,0.00020095,2]
[393644957,1762873852747,-500.0,0.00020095,2]
[393644958,1762873852756,-501.28298723,0.00020095,2]
[393644959,1762873852766,-501.84275431,0.00020095,2]
[393644960,1762873852775,-500.0,0.00020095,2]
[393644961,1762873852784,-500.0,0.00020095,2]
[393644962,1762873852794,-501.92453917,0.00020095,2]
[393644963,1762873852804,-756.433427,0.00020187,2]
[393644964,1762873852813,-160.0,0.00020269,2]
[393644965,1762873852822,-160.0,0.00020326,2]
[393644966,1762873852832,-400.09383847,0.00020326,2]
[393644967,1762873852842,-189.441753,0.00020338,2]
[393644968,1762873852852,-1000.0,0.00020484,2]
[393644969,1762873852862,-151.0,0.00020484,7]
[393644970,1762873852873,-151.0,0.00020484,7]
[393644971,1762873852883,-151.0,0.00020484,7]
[393644972,1762873852892,-500.0,0.000205,2]
[393644973,1762873852902,-257.7860095,0.000205,2]
[393644974,1762873852912,-500.0,0.000205,2]
[393644975,1762873852921,-500.0,0.000205,2]
[393644976,1762873852931,-501.69066645,0.000205,2]
[393644977,1762873852941,-500.0,0.000205,2]
[393644978,1762873852951,-501.65409155,0.000205,2]
[393644979,1762873852960,-501.97405426,0.00020507,2]
[393644980,1762873852970,-151.0,0.00020548,3]
[393644981,1762873852980,-151.0,0.00020548,3]
[393644982,1762873852989,-151.0,0.00020548,3]
[393644983,1762873852998,-151.0,0.00020548,3]
[393644984,1762873853008,-151.0,0.00020548,3]
[393644985,1762873853017,-151.0,0.00020548,7]
[393644986,1762873853027,-151.0,0.00020548,7]
[393644987,1762873853037,-151.0,0.00020548,7]
[393644988,1762873853047,-151.0,0.00020548,7]
[393644989,1762873853057,-151.0,0.00020548,7]
[393644990,1762873853067,-151.0,0.00020548,7]
[393644991,1762873853077,-151.0,0.00020548,7]
[393644992,1762873853087,-151.0,0.00020548,7]
[393644993,1762873853097,-151.0,0.00020548,7]
[393644994,1762873853107,-151.0,0.00020548,7]
[393644995,1762873853116,-178.117209,0.00020548,7]
[393644996,1762873853128,-501.72220391,0.00020579,2]
[393644997,1762873853138,-502.37898471,0.00020603,2]
[393644998,1762873853147,-500.0,0.00020603,2]
[393644999,1762873853157,-1000.0,0.00020643,2]
[393645000,1762873853166,-1000.0,0.00020643,2]
[393645001,1762873853175,-500.0,0.00020758,2]
[393645002,1762873853186,-367.60025948,0.00020838,2]
[393645003,1762873853196,-269.26192117,0.00020939,2]
[393645004,1762873853206,-208.1985527,0.00021048,2]
[393645005,1762873853216,-1000.0,0.00021048,2]
[393645006,1762873853226,-1382.44340923,0.00021191,2]
[393645007,1762873853236,-502.28352117,0.00021191,2]
[393645008,1762873853246,-189.441753,0.00021195,3]
[393645009,1762873853259,-646.22460945,0.00021306,2]
[393645010,1762873853269,-150.0,0.00021389,2]
[393645011,1762873853278,-168.0,0.00021704,2]
[393645012,1762873853288,-928.86285772,0.00021722,2]
[393645013,1762873853301,-168.0,0.00021822,2]
[393645014,1762873853311,-297.695328,0.00021918,7]
[393645015,1762873853321,-297.695328,0.00021918,7]
[393645016,1762873853331,-297.695328,0.00021918,7]
[393645017,1762873853340,-297.695328,0.00021918,7]
[393645018,1762873853350,-297.695328,0.00021918,7]
[393645019,1762873853360,-297.695328,0.00021918,7]
[393645020,1762873853371,-297.695328,0.00021918,7]
[393645021,1762873853381,-297.695328,0.00021918,7]
[393645022,1762873853391,-297.695328,0.00021918,7]
[393645023,1762873853401,-297.695328,0.00021918,7]
[393645024,1762873853412,-297.695328,0.00021918,7]
[393645025,1762873853422,-297.695328,0.00021918,7]
[393645026,1762873853432,-151.0,0.00021918,7]
[393645027,1762873853442,-151.0,0.00021918,7]
[393645028,1762873853452,-500.99720552,0.00021973,2]
[393645029,1762873853462,-500.0,0.00021973,2]
[393645030,1762873853472,-500.0,0.00021973,2]
[393645031,1762873853482,-501.60762304,0.00021973,2]
[393645032,1762873853492,-500.0,0.00021973,2]
[393645033,1762873853502,-500.0,0.00021973,2]
[393645034,1762873853512,-502.34258378,0.00021973,2]
[393645035,1762873853522,-500.0,0.00021973,2]
[393645036,1762873853533,-500.0,0.00021973,2]
[393645037,1762873853543,-171.98,0.00022,14]
[393645038,1762873853552,-54455.62,0.00022,7]
[393645039,1762873853562,-2541.85,0.00022,7]
[393645040,1762873853571,-200.0,0.00022,3]
[393645041,1762873853581,-200.0,0.00022,3]
[393645042,1762873853591,-200.0,0.00022,3]
[393645043,1762873853601,-200.0,0.00022,3]
[393645044,1762873853610,-200.0,0.00022,3]
[393645045,1762873853620,-151.0,0.00022,7]
[393645046,1762873853631,-151.0,0.00022,7]
[393645047,1762873853641,-151.0,0.00022,7]
[393645048,1762873853651,-151.0,0.00022,7]
[393645049,1762873853661,-300.913218,0.00022,7]
[393645050,1762873853671,-151.0,0.00022,7]
[393645051,1762873853681,-176.207553,0.00022,7]
[393645052,1762873853692,-282.507668,0.00022,7]
[393645053,1762873853703,-151.0,0.00022,7]
[393645054,1762873853713,-153.099716,0.00022,7]
[393645055,1762873853724,-151.0,0.00022,7]
[393645056,1762873853734,-157.120486,0.00022,7]
[393645057,1762873853744,-161.317644,0.00022,7]
[393645058,1762873853754,-151.0,0.00022,7]